fUSD/lending_fUSD_20250207
["ID","MTS","AMOUNT","RATE_DAILY","PERIOD"]
[352108954,1738950651352,-6638.16664016,0.000165,5]
[352108955,1738950651363,-42139.61879647,0.000165,5]
[352108958,1738950651378,-473591.23290568,0.000165,5]
[352108961,1738950651399,-500.0,0.00016438,2]
[352108963,1738950651408,-8513.09349695,0.000165,5]
[352108965,1738950651419,-5092.77776183,0.000165,5]
[352108967,1738950651430,-3656.54060947,0.000165,5]
[352109066,1738951769321,-10000.0,8.836e-05,2]
[352109067,1738951770427,-363.3367,8.836e-05,2]
[352109068,1738951770448,-2433.0235,8.836e-05,2]
[352109069,1738951770470,-1669.1582,8.836e-05,2]
[352109070,1738951770492,-500.0,8.851e-05,2]
[352109071,1738951770514,-2511.0111,8.851e-05,2]
[352109072,1738951770535,-679.7125,8.851e-05,2]
[352109082,1738951832004,-232.06,0.00010137,2]
[352109083,1738951832013,-4699.94,0.00011111,2]
[352109084,1738951832025,-282.7525456,0.00011111,2]
[352109085,1738951832066,-950.74832273,0.00011111,2]
[352109086,1738951832077,-691.94858545,0.00011111,2]
[352109087,1738951832089,-725.4122558,0.00011111,2]
[352109088,1738951832120,-5008.0021072,0.00011111,2]
[352109089,1738951832132,-809.87035941,0.00011111,2]
[352109090,1738951832141,-856.88645673,0.00012201,2]
[352109091,1738951832289,-290.97354327,0.00012201,2]
[352109093,1738951832299,-1147.82266759,0.00012876,2]
[352109095,1738951832310,-452.17733241,0.00012876,2]
[352109097,1738951832320,-253.87,0.00013699,2]
[352109099,1738951832329,-2190.94711591,0.00013877,2]
[352109100,1738951832339,-298.31,0.00013891,2]
[352109101,1738951832347,-231.33,0.00014123,2]
[352109103,1738951832359,-10704.48083826,0.00014132,2]
[352109108,1738951837834,-558.47926948,0.00014132,2]
[352109109,1738951837843,-8887.85105157,0.00014159,2]
[352109110,1738951838051,-91740.70894843,0.00014159,2]
[352109111,1738951838061,-251.77,0.00014164,2]
[352109112,1738951838071,-2000.0,0.00014189,2]
[352109113,1738951838081,-8102.67,0.00014191,2]
[352109114,1738951838091,-500.0,0.00014206,2]
[352109115,1738951838100,-200.0,0.00014207,2]
[352109117,1738951838111,-10032.73,0.00014229,2]
[352109119,1738951838120,-1000.0,0.00014231,2]
[352109121,1738951838130,-739.33,0.00014241,2]
[352109123,1738951838139,-1600.0,0.00014246,2]
[352109124,1738951838148,-302.22,0.00014252,2]
[352109127,1738951838158,-250.0,0.00014274,2]
[352109128,1738951838168,-168.36,0.00014369,2]
[352109130,1738951838177,-11262.96010768,0.00014384,2]
[352109132,1738951838186,-1147.86,0.00014464,2]
[352109134,1738951838196,-23900.0,0.00014516,2]
[352109136,1738951838206,-500.0,0.00014557,2]
[352109138,1738951838215,-11262.96010768,0.00014636,2]
[352109140,1738951838229,-573.88,0.00014637,2]
[352109142,1738951838239,-2676.9025303,0.00014686,2]
[352109144,1738951838249,-1000.0,0.00014873,2]
[352109146,1738951838260,-11262.96010768,0.00014888,2]
[352109148,1738951838270,-3102.0,0.00015,3]
[352109150,1738951838279,-153.0,0.00015032,2]
[352109152,1738951838290,-153.0,0.00015032,2]
[352109154,1738951838301,-153.0,0.00015032,2]
[352109156,1738951838311,-153.0,0.00015032,2]
[352109159,1738951838321,-153.0,0.00015032,2]
[352109161,1738951838331,-153.0,0.00015032,2]
[352109164,1738951838341,-153.0,0.00015032,2]
[352109166,1738951838352,-439.61,0.00015096,2]
[352109168,1738951838362,-11262.96010768,0.0001514,2]
[352109170,1738951838372,-346.02,0.00015188,2]
[352109172,1738951838383,-346.02,0.00015192,2]
[352109174,1738951838393,-346.02,0.00015196,2]
[352109176,1738951838403,-346.02,0.000152,2]
[352109178,1738951838413,-7348.34861107,0.00015201,2]
[352109180,1738951838424,-346.02,0.00015204,2]
[352109182,1738951838435,-439.61,0.00015205,2]
[352109184,1738951838446,-439.61,0.00015205,2]
[352109186,1738951838457,-346.02,0.00015208,2]
[352109188,1738951838467,-346.02,0.00015212,2]
[352109190,1738951838479,-346.02,0.00015216,2]
[352109192,1738951838490,-346.02,0.0001522,2]
[352109194,1738951838501,-346.02,0.00015224,2]
[352109196,1738951838510,-346.02,0.00015228,2]
[352109198,1738951838520,-346.02,0.00015232,2]
[352109200,1738951838529,-346.02,0.00015236,2]
[352109202,1738951838539,-346.02,0.0001524,2]
[352109204,1738951838548,-446.88,0.00015241,2]
[352109206,1738951838559,-346.02,0.00015244,2]
[352109208,1738951838569,-346.02,0.00015248,2]
[352109210,1738951838578,-346.02,0.00015252,2]
[352109212,1738951838588,-346.02,0.00015256,2]
[352109214,1738951838598,-346.02,0.0001526,2]
[352109216,1738951838607,-346.02,0.00015264,2]
[352109218,1738951838617,-11262.96010768,0.00015392,2]
[352109220,1738951838626,-49992.80920901,0.00015583,2]
[352109222,1738951838636,-1000.0,0.00015589,2]
[352109224,1738951838645,-380.43,0.0001559,2]
[352109226,1738951838654,-1600.0,0.00015616,2]
[352109228,1738951838663,-298.31,0.00015628,2]
[352109230,1738951838673,-11262.96010768,0.00015644,2]
[352109232,1738951838682,-11262.96010768,0.00015896,2]
[352109234,1738951838691,-45000.0,0.00016,4]
[352109236,1738951838701,-1000.0,0.0001601,2]
[352109238,1738951838710,-3912.0,0.00016011,2]
[352109239,1738951838719,-1007.0,0.00016011,2]
[352109241,1738951838730,-154.414,0.00016011,2]
[352109243,1738951838740,-1108.0,0.00016011,2]
[352109246,1738951838749,-150.93,0.0001609,2]
[352109248,1738951838759,-11262.96010768,0.00016148,2]
[352109249,1738951838769,-500.0,0.00016164,2]
[352109252,1738951838779,-500.0,0.00016164,2]
[352109254,1738951838789,-263.3656117,0.00016169,2]
[352109255,1738951838797,-449.89552753,0.00016284,2]
[352109257,1738951838806,-357.09525468,0.000163,2]
[352109259,1738951838816,-2627.291,0.00016352,2]
[352109261,1738951838826,-500.0,0.00016367,2]
[352109263,1738951838836,-500.0,0.00016368,2]
[352109266,1738951838845,-305695.28955048,0.000164,4]
[352109268,1738951838855,-2000.0,0.000164,2]
[352109270,1738951838865,-191.93871814,0.000164,2]
[352109272,1738951838874,-4344.80045876,0.000164,2]
[352109274,1738951838883,-11262.96010768,0.000164,2]
[352109276,1738951838893,-150.16984065,0.00016417,20]
[352109277,1738951838902,-361.08597073,0.00016422,2]
[352109280,1738951838911,-2280.0,0.00016438,2]
[352109281,1738951838920,-500.0,0.00016438,2]
[352109283,1738951838930,-560.8816589,0.00016438,2]
[352109285,1738951838939,-501.21607779,0.00016438,2]
[352109287,1738951838948,-500.64087563,0.00016438,2]
[352109289,1738951838958,-500.6836047,0.00016438,2]
[352109291,1738951838967,-500.0,0.00016438,2]
[352109293,1738951838978,-500.0,0.00016438,2]
[352109295,1738951838987,-500.0,0.00016438,2]
[352109297,1738951838997,-500.0,0.00016438,2]
[352109299,1738951839007,-500.0,0.00016438,2]
[352109302,1738951839016,-500.0,0.00016438,2]
[352109304,1738951839025,-500.0,0.00016438,2]
[352109306,1738951839037,-500.0,0.00016438,2]
[352109308,1738951839047,-500.0,0.00016438,2]
[352109309,1738951839056,-500.0,0.00016438,2]
[352109311,1738951839066,-543.13831268,0.00016438,2]
[352109313,1738951839077,-500.0,0.00016438,2]
[352109316,1738951839086,-500.0,0.00016438,2]
[352109318,1738951839096,-501.46241001,0.00016438,2]
[352109319,1738951839105,-500.0,0.00016438,2]
[352109321,1738951839116,-501.50777161,0.00016438,2]
[352109323,1738951839125,-500.0,0.00016438,2]
[352109325,1738951839136,-500.0,0.00016438,2]
[352109328,1738951839147,-500.0,0.00016438,2]
[352109329,1738951839156,-500.0,0.00016438,2]
[352109331,1738951839165,-500.0,0.00016438,2]
[352109333,1738951839175,-500.0,0.00016438,2]
[352109335,1738951839185,-500.0,0.00016438,2]
[352109337,1738951839194,-500.0,0.00016438,2]
[352109339,1738951839204,-202.02378117,0.00016438,2]
[352109341,1738951839214,-500.0,0.00016438,2]
[352109343,1738951839224,-500.0,0.00016438,2]
[352109346,1738951839238,-500.0,0.00016438,2]
[352109347,1738951839247,-500.0,0.00016438,2]
[352109349,1738951839257,-430.24992865,0.00016438,2]
[352109351,1738951839266,-405.16834702,0.00016438,2]
[352109354,1738951839276,-587.31,0.00016438,2]
[352109355,1738951839286,-500.0,0.00016438,2]
[352109357,1738951839296,-255.91785797,0.00016438,2]
[352109359,1738951839306,-500.0,0.00016438,2]
[352109361,1738951839315,-500.0,0.00016438,2]
[352109363,1738951839324,-500.0,0.00016438,2]
[352109365,1738951839334,-500.0,0.00016438,2]
[352109367,1738951839343,-500.0,0.00016438,2]
[352109369,1738951839353,-500.0,0.00016438,2]
[352109371,1738951839363,-190.37123564,0.00016438,2]
[352109373,1738951839374,-610.95,0.00016438,2]
[352109376,1738951839385,-509.02410604,0.00016438,2]
[352109378,1738951839395,-500.0,0.00016438,2]
[352109379,1738951839406,-500.0,0.00016438,2]
[352109381,1738951839416,-575.04,0.00016438,2]
[352109383,1738951839425,-500.0,0.00016438,2]
[352109385,1738951839435,-500.0,0.00016438,2]
[352109387,1738951839444,-500.0,0.00016438,2]
[352109390,1738951839454,-500.0,0.00016438,2]
[352109391,1738951839463,-500.0,0.00016438,2]
[352109393,1738951839474,-500.0,0.00016438,2]
[352109395,1738951839489,-507.65179722,0.00016438,2]
[352109397,1738951839499,-1143.346483,0.00016438,2]
[352109399,1738951839509,-608.98,0.00016438,2]
[352109401,1738951839519,-500.0,0.00016438,2]
[352109403,1738951839529,-500.0,0.00016438,2]
[352109405,1738951839539,-500.0,0.00016438,2]
[352109407,1738951839548,-500.0,0.00016438,2]
[352109409,1738951839557,-160.752556,0.00016438,2]
[352109411,1738951839567,-500.0,0.00016438,2]
[352109413,1738951839576,-186.84658019,0.00016438,2]
[352109415,1738951839586,-522.05,0.00016438,2]
[352109417,1738951839596,-221.0456427,0.00016438,2]
[352109419,1738951839606,-500.0,0.00016438,2]
[352109421,1738951839615,-500.0,0.00016438,2]
[352109423,1738951839624,-155.924318,0.00016438,2]
[352109425,1738951839633,-500.0,0.00016438,2]
[352109427,1738951839643,-502.31449212,0.00016438,2]
[352109429,1738951839653,-500.0,0.00016438,2]
[352109431,1738951839663,-500.0,0.00016438,2]
[352109434,1738951839672,-502.23520174,0.00016438,2]
[352109436,1738951839686,-500.0,0.00016438,2]
[352109438,1738951839696,-500.0,0.00016438,2]
[352109440,1738951839705,-500.0,0.00016438,2]
[352109442,1738951839716,-500.0,0.00016438,2]
[352109444,1738951839728,-500.0,0.00016438,2]
[352109446,1738951839738,-500.0,0.00016438,2]
[352109448,1738951839747,-500.0,0.00016438,2]
[352109450,1738951839756,-500.0,0.00016438,2]
[352109452,1738951839766,-500.0,0.00016438,2]
[352109455,1738951839775,-638.72155357,0.00016438,2]
[352109457,1738951839786,-500.0,0.00016438,2]
[352109462,1738951839795,-337.96790854,0.00016438,2]
[352109465,1738951839806,-1224.682035,0.00016438,2]
[352109468,1738951839816,-154.25447722,0.00016438,2]
[352109470,1738951839825,-500.0,0.00016438,2]
[352109473,1738951839835,-500.0,0.00016438,2]
[352109475,1738951839844,-336.9628116,0.00016438,2]
[352109477,1738951839854,-500.0,0.00016438,2]
[352109478,1738951839863,-500.0,0.00016438,2]
[352109480,1738951839873,-500.0,0.00016438,2]
[352109482,1738951839883,-500.0,0.00016438,2]
[352109484,1738951839893,-500.0,0.00016438,2]
[352109486,1738951839903,-536.36402145,0.00016438,2]
[352109488,1738951839914,-500.0,0.00016438,2]
[352109490,1738951839925,-500.0,0.00016438,2]
[352109493,1738951839936,-500.0,0.00016438,2]
[352109510,1738951840095,-500.0,0.00016438,2]
[352109512,1738951840106,-505.0046534,0.00016438,2]
[352109514,1738951840116,-500.0,0.00016438,2]
[352109516,1738951840125,-377.10220632,0.00016438,2]
[352109518,1738951840135,-500.0,0.00016438,2]
[352109520,1738951840144,-500.0,0.00016438,2]
[352109521,1738951840154,-500.0,0.00016438,2]
[352109523,1738951840163,-500.0,0.00016438,2]
[352109525,1738951840172,-500.0,0.00016438,2]
[352109527,1738951840182,-500.0,0.00016438,2]
[352109529,1738951840191,-583.2680394,0.00016438,2]
[352109531,1738951840200,-582.87,0.00016438,2]
[352109533,1738951840211,-500.0,0.00016438,2]
[352109535,1738951840220,-500.0,0.00016438,2]
[352109537,1738951840229,-500.0,0.00016438,2]
[352109539,1738951840239,-500.0,0.00016438,2]
[352109541,1738951840248,-500.0,0.00016438,2]
[352109543,1738951840257,-500.0,0.00016438,2]
[352109545,1738951840266,-1014.69,0.00016438,2]
[352109547,1738951840276,-500.0,0.00016438,2]
[352109549,1738951840286,-500.0,0.00016438,2]
[352109551,1738951840295,-500.0,0.00016438,2]
[352109553,1738951840306,-500.0,0.00016438,2]
[352109555,1738951840315,-502.59769097,0.00016438,2]
[352109557,1738951840325,-500.0,0.00016438,2]
[352109559,1738951840334,-500.0,0.00016438,2]
[352109561,1738951840343,-500.0,0.00016438,2]
[352109563,1738951840352,-1361.97,0.00016438,2]
[352109565,1738951840361,-500.0,0.00016438,2]
[352109566,1738951840370,-500.0,0.00016438,2]
[352109569,1738951840380,-500.0,0.00016438,2]
[352109570,1738951840389,-500.0,0.00016438,2]
[352109572,1738951840398,-500.0,0.00016438,2]
[352109574,1738951840408,-279.84463679,0.00016438,2]
[352109576,1738951840417,-500.0,0.00016438,2]
[352109578,1738951840426,-500.0,0.00016438,2]
[352109580,1738951840435,-500.0,0.00016438,2]
[352109582,1738951840445,-500.0,0.00016438,2]
[352109584,1738951840454,-500.0,0.00016438,2]
[352109586,1738951840463,-287.890507,0.00016438,2]
[352109588,1738951840473,-500.0,0.00016438,2]
[352109590,1738951840483,-500.0,0.00016438,2]
[352109592,1738951840492,-500.0,0.00016438,2]
[352109594,1738951840502,-500.0,0.00016438,2]
[352109596,1738951840511,-500.0,0.00016438,2]
[352109598,1738951840520,-500.0,0.00016438,2]
[352109600,1738951840529,-500.0,0.00016438,2]
[352109602,1738951840538,-500.0,0.00016438,2]
[352109604,1738951840548,-500.0,0.00016438,2]
[352109606,1738951840557,-500.0,0.00016438,2]
[352109608,1738951840566,-500.0,0.00016438,2]
[352109610,1738951840575,-500.0,0.00016438,2]
[352109612,1738951840584,-500.0,0.00016438,2]
[352109614,1738951840594,-500.0,0.00016438,2]
[352109616,1738951840603,-500.0,0.00016438,2]
[352109618,1738951840612,-507.06,0.00016438,2]
[352109620,1738951840621,-500.0,0.00016438,2]
[352109622,1738951840631,-500.0,0.00016438,2]
[352109624,1738951840640,-500.0,0.00016438,2]
[352109626,1738951840648,-500.0,0.00016438,2]
[352109628,1738951840658,-500.0,0.00016438,2]
[352109630,1738951840667,-500.0,0.00016438,2]
[352109632,1738951840676,-500.0,0.00016438,2]
[352109634,1738951840685,-500.0,0.00016438,2]
[352109636,1738951840694,-500.0,0.00016438,2]
[352109638,1738951840703,-501.90062906,0.00016438,2]
[352109640,1738951840712,-587.65,0.00016438,2]
[352109642,1738951840721,-500.0,0.00016438,2]
[352109644,1738951840732,-1298.55,0.00016438,2]
[352109646,1738951840741,-500.0,0.00016438,2]
[352109648,1738951840750,-1203.76,0.00016438,2]
[352109650,1738951840760,-500.0,0.00016438,2]
[352109652,1738951840769,-500.0,0.00016438,2]
[352109654,1738951840779,-500.0,0.00016438,2]
[352109656,1738951840789,-520.75,0.00016438,2]
[352109658,1738951840799,-500.0,0.00016438,2]
[352109660,1738951840808,-500.0,0.00016438,2]
[352109662,1738951840818,-500.0,0.00016438,2]
[352109663,1738951840827,-500.0,0.00016438,2]
[352109664,1738951840836,-500.0,0.00016438,2]
[352109665,1738951840845,-500.0,0.00016438,2]
[352109666,1738951840854,-500.0,0.00016438,2]
[352109667,1738951840863,-500.0,0.00016438,2]
[352109668,1738951840873,-500.0,0.00016438,7]
[352109669,1738951840882,-500.0,0.00016438,2]
[352109670,1738951840891,-500.0,0.00016438,2]
[352109671,1738951840901,-500.0,0.00016438,2]
[352109672,1738951840910,-500.0,0.00016438,2]
[352109673,1738951840919,-1360.03,0.00016438,2]
[352109674,1738951840929,-500.0,0.00016438,2]
[352109675,1738951840939,-500.0,0.00016438,2]
[352109676,1738951840948,-500.0,0.00016438,2]
[352109677,1738951840957,-150.254427,0.00016438,2]
[352109678,1738951840966,-672.91,0.00016438,2]
[352109679,1738951840976,-500.0,0.00016438,2]
[352109681,1738951840987,-508.50356398,0.00016438,2]
[352109683,1738951840997,-500.0,0.00016438,2]
[352109685,1738951841006,-500.0,0.00016438,2]
[352109687,1738951841016,-500.0,0.00016438,2]
[352109689,1738951841026,-287.890486,0.00016438,2]
[352109691,1738951841040,-500.0,0.00016438,2]
[352109693,1738951841049,-500.0,0.00016438,2]
[352109695,1738951841058,-500.0,0.00016438,2]
[352109697,1738951841067,-500.0,0.00016438,2]
[352109699,1738951841077,-506.52513416,0.00016438,2]
[352109701,1738951841087,-160.439544,0.00016438,2]
[352109703,1738951841096,-500.0,0.00016438,2]
[352109705,1738951841106,-155.51952,0.00016438,2]
[352109707,1738951841116,-500.0,0.00016438,2]
[352109709,1738951841125,-500.0,0.00016438,2]
[352109711,1738951841135,-500.0,0.00016438,2]
[352109713,1738951841144,-275.7878382,0.00016438,2]
[352109715,1738951841153,-500.0,0.00016438,2]
[352109717,1738951841163,-500.0,0.00016438,2]
[352109719,1738951841173,-500.0,0.00016438,2]
[352109721,1738951841182,-304.93695175,0.00016438,2]
[352109723,1738951841192,-500.0,0.00016438,2]
[352109725,1738951841202,-500.0,0.00016438,2]
[352109727,1738951841211,-500.0,0.00016438,2]
[352109729,1738951841220,-500.0,0.00016438,2]
[352109731,1738951841231,-500.0,0.00016438,2]
[352109733,1738951841240,-500.0,0.00016438,2]
[352109735,1738951841249,-500.0,0.00016438,2]
[352109737,1738951841259,-500.0,0.00016438,2]
[352109739,1738951841268,-152.233894,0.00016438,2]
[352109741,1738951841278,-500.0,0.00016438,2]
[352109743,1738951841289,-500.0,0.00016438,2]
[352109745,1738951841299,-501.27836274,0.00016438,2]
[352109747,1738951841309,-500.0,0.00016438,2]
[352109749,1738951841319,-500.0,0.00016438,2]
[352109751,1738951841329,-500.0,0.00016438,2]
[352109753,1738951841339,-500.0,0.00016438,2]
[352109755,1738951841349,-500.0,0.00016438,2]
[352109757,1738951841359,-541.98,0.00016438,2]
[352109759,1738951841368,-500.0,0.00016438,2]
[352109761,1738951841379,-500.0,0.00016438,2]
[352109763,1738951841388,-500.0,0.00016438,2]
[352109765,1738951841398,-158.846295,0.00016438,2]
[352109767,1738951841408,-500.0,0.00016438,2]
[352109769,1738951841417,-500.0,0.00016438,2]
[352109771,1738951841426,-500.0,0.00016438,2]
[352109773,1738951841435,-500.0,0.00016438,2]
[352109775,1738951841445,-500.0,0.00016438,2]
[352109776,1738951841454,-500.0,0.00016438,2]
[352109778,1738951841463,-500.0,0.00016438,2]
[352109781,1738951841473,-500.0,0.00016438,2]
[352109782,1738951841485,-500.0,0.00016438,2]
[352109784,1738951841495,-1149.18,0.00016438,2]
[352109786,1738951841504,-500.0,0.00016438,2]
[352109789,1738951841514,-500.0,0.00016438,2]
[352109790,1738951841523,-500.0,0.00016438,2]
[352109792,1738951841533,-500.0,0.00016438,2]
[352109794,1738951841542,-500.0,0.00016438,2]
[352109796,1738951841551,-500.0,0.00016438,2]
[352109799,1738951841561,-500.0,0.00016438,2]
[352109800,1738951841570,-500.0,0.00016438,2]
[352109802,1738951841580,-500.0,0.00016438,2]
[352109804,1738951841589,-323.73332014,0.00016438,2]
[352109806,1738951841599,-500.0,0.00016438,2]
[352109809,1738951841608,-500.0,0.00016438,2]
[352109810,1738951841618,-500.0,0.00016438,2]
[352109812,1738951841627,-500.0,0.00016438,2]
[352109814,1738951841636,-500.0,0.00016438,2]
[352109816,1738951841645,-500.0,0.00016438,2]
[352109818,1738951841654,-500.0,0.00016438,2]
[352109820,1738951841663,-591.99,0.00016438,2]
[352109822,1738951841672,-500.0,0.00016438,2]
[352109824,1738951841683,-507.01952264,0.00016438,2]
[352109827,1738951841692,-500.0,0.00016438,2]
[352109829,1738951841702,-500.0,0.00016438,2]
[352109830,1738951841711,-500.0,0.00016438,2]
[352109833,1738951841720,-447.88207307,0.00016438,2]
[352109834,1738951841731,-500.0,0.00016438,2]
[352109836,1738951841740,-500.0,0.00016438,2]
[352109839,1738951841749,-500.0,0.00016438,2]
[352109841,1738951841758,-500.0,0.00016438,2]
[352109843,1738951841767,-500.0,0.00016438,2]
[352109844,1738951841776,-500.0,0.00016438,2]
[352109846,1738951841785,-500.0,0.00016438,2]
[352109848,1738951841794,-500.0,0.00016438,2]
[352109850,1738951841804,-500.0,0.00016438,2]
[352109853,1738951841813,-500.0,0.00016438,2]
[352109854,1738951841822,-500.0,0.00016438,2]
[352109856,1738951841831,-502.1,0.00016438,2]
[352109858,1738951841840,-500.0,0.00016438,2]
[352109861,1738951841849,-500.0,0.00016438,2]
[352109863,1738951841858,-500.0,0.00016438,2]
[352109864,1738951841868,-500.0,0.00016438,2]
[352109866,1738951841878,-500.0,0.00016438,2]
[352109868,1738951841887,-500.0,0.00016438,2]
[352109870,1738951841896,-500.0,0.00016438,2]
[352109872,1738951841905,-500.0,0.00016438,2]
[352109874,1738951841914,-500.0,0.00016438,2]
[352109876,1738951841923,-500.0,0.00016438,2]
[352109878,1738951841932,-500.0,0.00016438,2]
[352109880,1738951841941,-500.0,0.00016438,2]
[352109882,1738951841950,-500.0,0.00016438,2]
[352109884,1738951841959,-500.0,0.00016438,2]
[352109886,1738951841969,-500.0,0.00016438,2]
[352109888,1738951841978,-500.0,0.00016438,2]
[352109890,1738951841988,-500.0,0.00016438,2]
[352109892,1738951841998,-612.68796512,0.00016438,2]
[352109894,1738951842007,-500.0,0.00016438,2]
[352109896,1738951842016,-150.254427,0.00016438,2]
[352109898,1738951842026,-500.0,0.00016438,2]
[352109900,1738951842037,-500.0,0.00016438,2]
[352109902,1738951842048,-500.0,0.00016438,2]
[352109904,1738951842057,-500.0,0.00016438,2]
[352109906,1738951842066,-500.0,0.00016438,2]
[352109908,1738951842075,-500.0,0.00016438,2]
[352109910,1738951842086,-500.0,0.00016438,2]
[352109912,1738951842095,-500.0,0.00016438,2]
[352109914,1738951842104,-500.0,0.00016438,2]
[352109916,1738951842113,-500.0,0.00016438,2]
[352109918,1738951842123,-500.0,0.00016438,2]
[352109920,1738951842132,-500.0,0.00016438,2]
[352109922,1738951842141,-500.0,0.00016438,2]
[352109924,1738951842151,-500.0,0.00016438,2]
[352109926,1738951842160,-500.0,0.00016438,2]
[352109928,1738951842169,-287.890493,0.00016438,2]
[352109930,1738951842178,-500.0,0.00016438,2]
[352109932,1738951842187,-1213.88,0.00016438,2]
[352109934,1738951842196,-500.0,0.00016438,2]
[352109936,1738951842205,-500.0,0.00016438,2]
[352109938,1738951842215,-500.0,0.00016438,2]
[352109940,1738951842224,-500.0,0.00016438,2]
[352109942,1738951842233,-500.0,0.00016438,2]
[352109944,1738951842243,-500.0,0.00016438,2]
[352109946,1738951842252,-500.0,0.00016438,2]
[352109948,1738951842261,-500.0,0.00016438,2]
[352109950,1738951842270,-829.14,0.00016438,2]
[352109952,1738951842279,-3137.7514855,0.00016438,2]
[352109954,1738951842288,-508.14993818,0.00016438,2]
[352109956,1738951842297,-500.0,0.00016438,2]
[352109958,1738951842307,-500.0,0.00016438,2]
[352109960,1738951842316,-500.0,0.00016438,2]
[352109962,1738951842325,-500.0,0.00016438,2]
[352109964,1738951842334,-500.0,0.00016438,2]
[352109966,1738951842344,-500.0,0.00016438,2]
[352109968,1738951842353,-500.0,0.00016438,2]
[352109970,1738951842362,-500.0,0.00016438,2]
[352109972,1738951842371,-500.0,0.00016438,2]
[352109974,1738951842380,-500.0,0.00016438,2]
[352109976,1738951842390,-500.0,0.00016438,2]
[352109978,1738951842399,-500.0,0.00016438,2]
[352109992,1738951842523,-500.0,0.00016438,2]
[352109995,1738951842532,-500.0,0.00016438,2]
[352109997,1738951842542,-500.0,0.00016438,2]
[352109998,1738951842554,-500.0,0.00016438,2]
[352110000,1738951842564,-500.0,0.00016438,2]
[352110003,1738951842574,-500.0,0.00016438,2]
[352110004,1738951842583,-500.0,0.00016438,2]
[352110007,1738951842593,-500.0,0.00016438,2]
[352110009,1738951842603,-500.0,0.00016438,2]
[352110010,1738951842614,-500.0,0.00016438,2]
[352110013,1738951842623,-1537.04,0.00016438,2]
[352110015,1738951842634,-500.0,0.00016438,2]
[352110017,1738951842645,-460.74447194,0.00016438,2]
[352110019,1738951842654,-500.0,0.00016438,2]
[352110022,1738951842663,-500.0,0.00016438,2]
[352110026,1738951842672,-500.0,0.00016438,2]
[352110027,1738951842681,-500.0,0.00016438,2]
[352110030,1738951842691,-500.0,0.00016438,2]
[352110032,1738951842700,-500.0,0.00016438,2]
[352110035,1738951842710,-500.0,0.00016438,2]
[352110037,1738951842719,-500.0,0.00016438,2]
[352110039,1738951842728,-500.0,0.00016438,2]
[352110041,1738951842738,-500.0,0.00016438,2]
[352110043,1738951842748,-500.0,0.00016438,2]
[352110045,1738951842757,-500.0,0.00016438,2]
[352110047,1738951842766,-500.0,0.00016438,2]
[352110048,1738951842775,-500.0,0.00016438,2]
[352110051,1738951842784,-500.0,0.00016438,2]
[352110053,1738951842794,-500.0,0.00016438,2]
[352110055,1738951842804,-500.0,0.00016438,2]
[352110057,1738951842813,-1415.16,0.00016438,2]